[Event "Titled Tuesday Blitz April 25 Late 2023"]
[White "Bryakin, Mikhail"]
[Black "Harriott, Tyrell"]
[WhiteFideId "4165314"]
[BlackFideId "2086484"]
[WhiteElo "2447"]
[BlackElo "2107"]
[Result "1-0"]
[Round "01"]
[TimeControl "180+2"]
[Date "2023.04.25"]
[WhiteClock "0:00:23"]
[BlackClock "0:00:12"]

1. e4 {[%clk 0:02:47]}  e6 {[%clk 0:02:56]} 2. d3 {[%clk 0:02:40]}  d5 {[%clk 0:02:55]} 3. Nd2 {[%clk 0:02:41]}  f5 {[%clk 0:02:54]} 4. exf5 {[%clk 0:02:37]}  exf5 {[%clk 0:02:54]} 5. d4 {[%clk 0:02:33]}  Nf6 {[%clk 0:02:53]} 6. Bd3 {[%clk 0:02:33]}  Bd6 {[%clk 0:02:53]} 7. Ne2 {[%clk 0:02:33]}  O-O {[%clk 0:02:52]} 8. O-O {[%clk 0:02:33]}  Ne4 {[%clk 0:02:49]} 9. Nf3 {[%clk 0:02:32]}  f4 {[%clk 0:02:42]} 10. c4 {[%clk 0:02:31]}  c6 {[%clk 0:02:42]} 11. Nc3 {[%clk 0:02:31]}  Nxc3 {[%clk 0:02:31]} 12. bxc3 {[%clk 0:02:32]}  Be6 {[%clk 0:02:29]} 13. cxd5 {[%clk 0:02:25]}  cxd5 {[%clk 0:02:22]} 14. a4 {[%clk 0:02:25]}  Nc6 {[%clk 0:01:58]} 15. h3 {[%clk 0:02:25]}  Qf6 {[%clk 0:01:55]} 16. Ba3 {[%clk 0:02:24]}  Bxa3 {[%clk 0:01:52]} 17. Rxa3 {[%clk 0:02:25]}  Rac8 {[%clk 0:01:52]} 18. Re1 {[%clk 0:02:26]}  Bf7 {[%clk 0:01:50]} 19. a5 {[%clk 0:02:20]}  a6 {[%clk 0:01:49]} 20. Qb3 {[%clk 0:02:18]}  Rc7 {[%clk 0:01:48]} 21. Qb6 {[%clk 0:02:15]}  Rfc8 {[%clk 0:01:46]} 22. Qb1 {[%clk 0:02:01]}  g6 {[%clk 0:01:37]} 23. Ne5 {[%clk 0:01:54]}  Be6 {[%clk 0:01:31]} 24. Nf3 {[%clk 0:01:46]}  Ne7 {[%clk 0:01:22]} 25. Qb4 {[%clk 0:01:45]}  Nf5 {[%clk 0:01:18]} 26. Bf1 {[%clk 0:01:45]}  Bf7 {[%clk 0:01:14]} 27. Re5 {[%clk 0:01:44]}  Nd6 {[%clk 0:01:13]} 28. Bd3 {[%clk 0:01:29]}  Nc4 {[%clk 0:01:08]} 29. Bxc4 {[%clk 0:01:29]}  Rxc4 {[%clk 0:01:07]} 30. Qb2 {[%clk 0:01:28]}  Qc6 {[%clk 0:01:00]} 31. Rb3 {[%clk 0:01:27]}  Rc7 {[%clk 0:00:58]} 32. Rb6 {[%clk 0:01:25]}  Qa4 {[%clk 0:00:57]} 33. Rxb7 {[%clk 0:01:11]}  Qxa5 {[%clk 0:00:56]} 34. Rxc7 {[%clk 0:01:01]}  Qxc7 {[%clk 0:00:57]} 35. Qd2 {[%clk 0:01:00]}  Rxc3 {[%clk 0:00:50]} 36. Qxf4 {[%clk 0:01:00]}  a5 {[%clk 0:00:45]} 37. Ng5 {[%clk 0:00:58]}  Rc1+ {[%clk 0:00:41]} 38. Kh2 {[%clk 0:00:58]}  a4 {[%clk 0:00:42]} 39. Qh4 {[%clk 0:00:54]}  h5 {[%clk 0:00:36]} 40. Qf4 {[%clk 0:00:53]}  Rc2 {[%clk 0:00:29]} 41. Qe3 {[%clk 0:00:36]}  Rc3 {[%clk 0:00:21]} 42. Qd2 {[%clk 0:00:35]}  a3 {[%clk 0:00:21]} 43. Nxf7 {[%clk 0:00:35]}  Kxf7 {[%clk 0:00:20]} 44. Qh6 {[%clk 0:00:35]}  Kf6 {[%clk 0:00:18]} 45. Qh8+ {[%clk 0:00:28]}  Kf7 {[%clk 0:00:17]} 46. f4 {[%clk 0:00:27]}  Qc8 {[%clk 0:00:11]} 47. Qh7+ {[%clk 0:00:25]}  Kf6 {[%clk 0:00:12]} 48. Qe7# {[%clk 0:00:23]} 1-0


[Site "https://www.chess.com"]

[Event "Titled Tuesday Blitz April 25 Late 2023"]
[White "Bustamante Orta, Jorge"]
[Black "Bilych, Olexiy"]
[WhiteFideId "5121710"]
[BlackFideId "14156504"]
[WhiteElo "2165"]
[BlackElo "2320"]
[Result "1-0"]
[Round "01"]
[TimeControl "180+2"]
[Date "2023.04.25"]
[WhiteClock "0:00:53"]
[BlackClock "0:00:04"]

1. b3 {[%clk 0:02:59]}  e5 {[%clk 0:02:58]} 2. Bb2 {[%clk 0:02:58]}  Nc6 {[%clk 0:02:59]} 3. c4 {[%clk 0:02:58]}  Nf6 {[%clk 0:02:56]} 4. e3 {[%clk 0:02:59]}  Be7 {[%clk 0:02:52]} 5. Nf3 {[%clk 0:02:46]}  e4 {[%clk 0:02:51]} 6. Nd4 {[%clk 0:02:46]}  Nxd4 {[%clk 0:02:50]} 7. Bxd4 {[%clk 0:02:46]}  b6 {[%clk 0:02:44]} 8. g4 {[%clk 0:02:46]}  h6 {[%clk 0:02:37]} 9. h4 {[%clk 0:02:42]}  d6 {[%clk 0:02:31]} 10. Be2 {[%clk 0:02:37]}  c5 {[%clk 0:02:31]} 11. Bb2 {[%clk 0:02:36]}  Be6 {[%clk 0:02:28]} 12. Rg1 {[%clk 0:02:33]}  Nd7 {[%clk 0:01:51]} 13. Bxg7 {[%clk 0:02:29]}  Rh7 {[%clk 0:01:51]} 14. Bb2 {[%clk 0:02:27]}  Bxh4 {[%clk 0:01:51]} 15. Nc3 {[%clk 0:02:26]}  Nf6 {[%clk 0:01:27]} 16. Qc2 {[%clk 0:02:24]}  d5 {[%clk 0:01:24]} 17. cxd5 {[%clk 0:02:22]}  Nxd5 {[%clk 0:01:18]} 18. Qxe4 {[%clk 0:02:19]}  Nf6 {[%clk 0:01:07]} 19. Qc2 {[%clk 0:01:47]}  Rg7 {[%clk 0:00:47]} 20. O-O-O {[%clk 0:01:45]}  Nxg4 {[%clk 0:00:41]} 21. Ne4 {[%clk 0:01:41]}  Rg6 {[%clk 0:00:38]} 22. f3 {[%clk 0:01:34]}  Nf6 {[%clk 0:00:21]} 23. Rxg6 {[%clk 0:01:33]}  fxg6 {[%clk 0:00:14]} 24. Nxf6+ {[%clk 0:01:33]}  Kf7 {[%clk 0:00:12]} 25. Ng4 {[%clk 0:01:28]}  Bf5 {[%clk 0:00:09]} 26. Nxh6+ {[%clk 0:01:28]}  Ke6 {[%clk 0:00:09]} 27. Bc4+ {[%clk 0:01:26]}  Kd6 {[%clk 0:00:09]} 28. Nf7+ {[%clk 0:01:24]}  Kc7 {[%clk 0:00:09]} 29. Be5+ {[%clk 0:01:19]}  Kb7 {[%clk 0:00:08]} 30. e4 {[%clk 0:01:15]}  Qe7 {[%clk 0:00:05]} 31. Bd6 {[%clk 0:01:10]}  Qd7 {[%clk 0:00:04]} 32. exf5 {[%clk 0:01:06]}  gxf5 {[%clk 0:00:03]} 33. Bd5+ {[%clk 0:01:04]}  Ka6 {[%clk 0:00:04]} 34. Qd3+ {[%clk 0:01:02]}  b5 {[%clk 0:00:03]} 35. Bxc5 {[%clk 0:01:00]}  Bf6 {[%clk 0:00:02]} 36. Nd6 {[%clk 0:00:58]}  Rc8 {[%clk 0:00:02]} 37. Bb7+ {[%clk 0:00:56]}  Qxb7 {[%clk 0:00:02]} 38. Nxb7 {[%clk 0:00:55]}  Kxb7 {[%clk 0:00:02]} 39. Qxb5+ {[%clk 0:00:56]}  Ka8 {[%clk 0:00:03]} 40. Kb1 {[%clk 0:00:55]}  Rb8 {[%clk 0:00:02]} 41. Qc6+ {[%clk 0:00:54]}  Rb7 {[%clk 0:00:03]} 42. Re1 {[%clk 0:00:53]}  f4 {[%clk 0:00:04]} 43. Re8+ {[%clk 0:00:53]}  Bd8 {[%clk 0:00:04]} 1-0


[Site "https://www.chess.com"]

[Event "Titled Tuesday Blitz April 25 Late 2023"]
[White "Lamaze, Simon"]
[Black "Silva, Miguel Antonio Neto"]
[WhiteFideId "36069264"]
[BlackFideId "1911929"]
[WhiteElo "2272"]
[BlackElo "2223"]
[Result "0-1"]
[Round "01"]
[TimeControl "180+2"]
[Date "2023.04.25"]
[WhiteClock "0:00:32"]
[BlackClock "0:00:17"]

1. e4 {[%clk 0:02:52]}  c5 {[%clk 0:02:54]} 2. Nf3 {[%clk 0:02:52]}  d6 {[%clk 0:02:54]} 3. d4 {[%clk 0:02:52]}  cxd4 {[%clk 0:02:55]} 4. Nxd4 {[%clk 0:02:53]}  Nf6 {[%clk 0:02:55]} 5. Bb5+ {[%clk 0:02:54]}  Nbd7 {[%clk 0:02:53]} 6. O-O {[%clk 0:02:54]}  a6 {[%clk 0:02:52]} 7. Ba4 {[%clk 0:02:54]}  g6 {[%clk 0:02:47]} 8. c4 {[%clk 0:02:51]}  Bg7 {[%clk 0:02:47]} 9. Bc2 {[%clk 0:02:50]}  O-O {[%clk 0:02:46]} 10. Nc3 {[%clk 0:02:50]}  Qc7 {[%clk 0:02:39]} 11. Qe2 {[%clk 0:02:49]}  b6 {[%clk 0:02:38]} 12. Be3 {[%clk 0:02:47]}  Bb7 {[%clk 0:02:38]} 13. f3 {[%clk 0:02:47]}  Rac8 {[%clk 0:02:37]} 14. Bd3 {[%clk 0:02:45]}  Ne5 {[%clk 0:02:31]} 15. b3 {[%clk 0:02:42]}  Nxd3 {[%clk 0:02:21]} 16. Qxd3 {[%clk 0:02:42]}  b5 {[%clk 0:02:20]} 17. Nd5 {[%clk 0:02:28]}  Bxd5 {[%clk 0:02:19]} 18. cxd5 {[%clk 0:02:27]}  Qc3 {[%clk 0:02:11]} 19. Rad1 {[%clk 0:02:27]}  Qxd3 {[%clk 0:02:08]} 20. Rxd3 {[%clk 0:02:28]}  Nd7 {[%clk 0:02:06]} 21. Nc6 {[%clk 0:02:28]}  Rfe8 {[%clk 0:02:04]} 22. Rc1 {[%clk 0:02:23]}  Kf8 {[%clk 0:01:58]} 23. a4 {[%clk 0:02:21]}  Ne5 {[%clk 0:01:57]} 24. Rdc3 {[%clk 0:02:19]}  b4 {[%clk 0:01:28]} 25. R3c2 {[%clk 0:02:16]}  Nd3 {[%clk 0:01:17]} 26. Rd1 {[%clk 0:02:07]}  Ne5 {[%clk 0:01:17]} 27. Nxb4 {[%clk 0:02:02]}  Rb8 {[%clk 0:01:08]} 28. Bd2 {[%clk 0:01:52]}  a5 {[%clk 0:01:03]} 29. Nc6 {[%clk 0:01:50]}  Rxb3 {[%clk 0:01:01]} 30. Ra2 {[%clk 0:01:47]}  Nxc6 {[%clk 0:00:59]} 31. dxc6 {[%clk 0:01:45]}  Rc8 {[%clk 0:00:59]} 32. Rc1 {[%clk 0:01:44]}  Bd4+ {[%clk 0:00:54]} 33. Kf1 {[%clk 0:01:43]}  Bc5 {[%clk 0:00:52]} 34. Bxa5 {[%clk 0:01:41]}  Rxc6 {[%clk 0:00:52]} 35. Bd2 {[%clk 0:01:41]}  Ra6 {[%clk 0:00:52]} 36. a5 {[%clk 0:01:37]}  Ke8 {[%clk 0:00:52]} 37. Ke2 {[%clk 0:01:35]}  Kd7 {[%clk 0:00:51]} 38. h4 {[%clk 0:01:35]}  Kc6 {[%clk 0:00:46]} 39. h5 {[%clk 0:01:33]}  Kd7 {[%clk 0:00:40]} 40. h6 {[%clk 0:01:32]}  Bb4 {[%clk 0:00:36]} 41. Bxb4 {[%clk 0:01:22]}  Rxb4 {[%clk 0:00:36]} 42. Rc3 {[%clk 0:01:19]}  Rb5 {[%clk 0:00:34]} 43. Rca3 {[%clk 0:01:18]}  Rh5 {[%clk 0:00:34]} 44. Rb3 {[%clk 0:01:18]}  Rhxa5 {[%clk 0:00:31]} 45. Rb7+ {[%clk 0:01:17]}  Ke6 {[%clk 0:00:31]} 46. Rc2 {[%clk 0:01:16]}  Ra2 {[%clk 0:00:31]} 47. Rxa2 {[%clk 0:01:08]}  Rxa2+ {[%clk 0:00:30]} 48. Kf1 {[%clk 0:01:09]}  Ra1+ {[%clk 0:00:30]} 49. Kf2 {[%clk 0:01:07]}  Rh1 {[%clk 0:00:29]} 50. Kg3 {[%clk 0:01:08]}  Rxh6 {[%clk 0:00:29]} 51. Kf4 {[%clk 0:01:09]}  Rh2 {[%clk 0:00:26]} 52. Rb2 {[%clk 0:01:09]}  h6 {[%clk 0:00:24]} 53. Kg4 {[%clk 0:01:08]}  Rh1 {[%clk 0:00:23]} 54. Kf4 {[%clk 0:01:08]}  h5 {[%clk 0:00:22]} 55. Kg5 {[%clk 0:01:08]}  Rg1 {[%clk 0:00:21]} 56. Kh4 {[%clk 0:01:08]}  f6 {[%clk 0:00:20]} 57. Kg3 {[%clk 0:01:07]}  g5 {[%clk 0:00:20]} 58. Rb7 {[%clk 0:01:04]}  Rc1 {[%clk 0:00:20]} 59. Ra7 {[%clk 0:01:04]}  Rc2 {[%clk 0:00:20]} 60. Kh3 {[%clk 0:01:04]}  h4 {[%clk 0:00:21]} 61. Rb7 {[%clk 0:01:04]}  Rc1 {[%clk 0:00:20]} 62. Kh2 {[%clk 0:01:03]}  Ra1 {[%clk 0:00:20]} 63. Rc7 {[%clk 0:01:03]}  Ra2 {[%clk 0:00:20]} 64. Kh3 {[%clk 0:01:03]}  Ra5 {[%clk 0:00:20]} 65. Rb7 {[%clk 0:01:02]}  Rc5 {[%clk 0:00:20]} 66. Ra7 {[%clk 0:01:02]}  d5 {[%clk 0:00:21]} 67. Ra6+ {[%clk 0:00:59]}  Kf7 {[%clk 0:00:21]} 68. exd5 {[%clk 0:00:59]}  Rxd5 {[%clk 0:00:21]} 69. Ra1 {[%clk 0:01:00]}  e5 {[%clk 0:00:20]} 70. Ra8 {[%clk 0:00:59]}  Kg6 {[%clk 0:00:20]} 71. Ra1 {[%clk 0:00:57]}  Kf5 {[%clk 0:00:21]} 72. Ra6 {[%clk 0:00:56]}  Rd4 {[%clk 0:00:21]} 73. Rb6 {[%clk 0:00:56]}  e4 {[%clk 0:00:22]} 74. fxe4+ {[%clk 0:00:55]}  Rxe4 {[%clk 0:00:21]} 75. Rb5+ {[%clk 0:00:55]}  Kg6 {[%clk 0:00:21]} 76. Ra5 {[%clk 0:00:56]}  Rf4 {[%clk 0:00:21]} 77. Rb5 {[%clk 0:00:55]}  Kh5 {[%clk 0:00:21]} 78. Rb8 {[%clk 0:00:55]}  f5 {[%clk 0:00:21]} 79. Rh8+ {[%clk 0:00:54]}  Kg6 {[%clk 0:00:22]} 80. Rg8+ {[%clk 0:00:55]}  Kf6 {[%clk 0:00:22]} 81. Rf8+ {[%clk 0:00:55]}  Ke5 {[%clk 0:00:23]} 82. Re8+ {[%clk 0:00:55]}  Kd4 {[%clk 0:00:22]} 83. Rg8 {[%clk 0:00:55]}  Rg4 {[%clk 0:00:22]} 84. Re8 {[%clk 0:00:55]}  Rg3+ {[%clk 0:00:21]} 85. Kh2 {[%clk 0:00:55]}  f4 {[%clk 0:00:22]} 86. Re7 {[%clk 0:00:55]}  Re3 {[%clk 0:00:22]} 87. Rg7 {[%clk 0:00:55]}  Re5 {[%clk 0:00:23]} 88. Kh3 {[%clk 0:00:54]}  Ke3 {[%clk 0:00:23]} 89. Kg4 {[%clk 0:00:55]}  Kf2 {[%clk 0:00:23]} 90. Kh3 {[%clk 0:00:48]}  Re3+ {[%clk 0:00:23]} 91. Kh2 {[%clk 0:00:48]}  Rg3 {[%clk 0:00:23]} 92. Kh1 {[%clk 0:00:49]}  Rxg2 {[%clk 0:00:22]} 93. Ra7 {[%clk 0:00:49]}  Rg1+ {[%clk 0:00:21]} 94. Kh2 {[%clk 0:00:49]}  Re1 {[%clk 0:00:22]} 95. Kh3 {[%clk 0:00:48]}  Re3+ {[%clk 0:00:22]} 96. Kh2 {[%clk 0:00:47]}  Kf3 {[%clk 0:00:22]} 97. Ra2 {[%clk 0:00:44]}  g4 {[%clk 0:00:22]} 98. Rg2 {[%clk 0:00:41]}  Re2 {[%clk 0:00:22]} 99. Kh1 {[%clk 0:00:41]}  h3 {[%clk 0:00:21]} 100. Rg1 {[%clk 0:00:36]}  g3 {[%clk 0:00:21]} 101. Rf1+ {[%clk 0:00:36]}  Rf2 {[%clk 0:00:21]} 102. Ra1 {[%clk 0:00:33]}  Kg4 {[%clk 0:00:18]} 103. Rd1 {[%clk 0:00:33]}  Rh2+ {[%clk 0:00:17]} 104. Kg1 {[%clk 0:00:33]}  Rc2 {[%clk 0:00:18]} 105. Ra1 {[%clk 0:00:33]}  h2+ {[%clk 0:00:17]} 106. Kh1 {[%clk 0:00:32]}  Kh3 {[%clk 0:00:17]} 107. Rg1 {[%clk 0:00:32]} 0-1


[Site "https://www.chess.com"]

[Event "Titled Tuesday Blitz April 25 Late 2023"]
[White "Alexikov, Alexander"]
[Black "Schmakel, Sam"]
[WhiteFideId "14103958"]
[BlackFideId "2039311"]
[WhiteElo "2186"]
[BlackElo "2356"]
[Result "0-1"]
[Round "01"]
[TimeControl "180+2"]
[Date "2023.04.25"]
[WhiteClock "0:00:01"]
[BlackClock "0:00:00"]

1. e4 {[%clk 0:00:01]}  Nc6 {[%clk 0:00:01]} 2. Nf3 {[%clk 0:00:01]}  d6 {[%clk 0:00:01]} 3. Bb5 {[%clk 0:00:01]}  Nf6 {[%clk 0:00:01]} 4. Qe2 {[%clk 0:00:01]}  e5 {[%clk 0:00:01]} 5. O-O {[%clk 0:00:01]}  Bd7 {[%clk 0:00:01]} 6. c3 {[%clk 0:00:01]}  a6 {[%clk 0:00:01]} 7. Ba4 {[%clk 0:00:01]}  Be7 {[%clk 0:00:01]} 8. d3 {[%clk 0:00:01]}  O-O {[%clk 0:00:01]} 9. Bb3 {[%clk 0:00:01]}  Na5 {[%clk 0:00:01]} 10. Bc2 {[%clk 0:00:01]}  c5 {[%clk 0:00:01]} 11. h3 {[%clk 0:00:01]}  Re8 {[%clk 0:00:01]} 12. Re1 {[%clk 0:00:01]}  Qc7 {[%clk 0:00:01]} 13. Nbd2 {[%clk 0:00:01]}  Bf8 {[%clk 0:00:01]} 14. Nc4 {[%clk 0:00:01]}  Nxc4 {[%clk 0:00:01]} 15. dxc4 {[%clk 0:00:01]}  h6 {[%clk 0:00:01]} 16. Kh2 {[%clk 0:00:01]}  b5 {[%clk 0:00:01]} 17. Bd3 {[%clk 0:00:01]}  Rab8 {[%clk 0:00:00]} 18. cxb5 {[%clk 0:00:01]}  axb5 {[%clk 0:00:00]} 19. c4 {[%clk 0:00:01]}  bxc4 {[%clk 0:00:00]} 20. Bxc4 {[%clk 0:00:01]}  d5 {[%clk 0:00:00]} 21. exd5 {[%clk 0:00:01]}  e4+ {[%clk 0:00:00]} 0-1


[Site "https://www.chess.com"]

[Event "Titled Tuesday Blitz April 25 Late 2023"]
[White "Rastbod, Ali"]
[Black "Hoffmann, Asa"]
[WhiteFideId "12567477"]
[BlackFideId "2001470"]
[WhiteElo "2248"]
[BlackElo "2117"]
[Result "1-0"]
[Round "01"]
[TimeControl "180+2"]
[Date "2023.04.25"]
[WhiteClock "0:00:40"]
[BlackClock "0:00:01"]

1. d4 {[%clk 0:02:50]}  Nf6 {[%clk 0:02:58]} 2. Nf3 {[%clk 0:02:50]}  d6 {[%clk 0:02:57]} 3. g3 {[%clk 0:02:49]}  c6 {[%clk 0:02:57]} 4. Bg2 {[%clk 0:02:50]}  Bf5 {[%clk 0:02:57]} 5. O-O {[%clk 0:02:46]}  h6 {[%clk 0:02:57]} 6. Re1 {[%clk 0:02:44]}  Nbd7 {[%clk 0:02:55]} 7. c4 {[%clk 0:02:41]}  e5 {[%clk 0:02:55]} 8. Nc3 {[%clk 0:02:41]}  e4 {[%clk 0:02:55]} 9. Nd2 {[%clk 0:02:38]}  d5 {[%clk 0:02:54]} 10. cxd5 {[%clk 0:02:37]}  cxd5 {[%clk 0:02:53]} 11. Qb3 {[%clk 0:02:38]}  Nb6 {[%clk 0:02:53]} 12. f3 {[%clk 0:02:37]}  Be7 {[%clk 0:02:47]} 13. fxe4 {[%clk 0:02:36]}  dxe4 {[%clk 0:02:46]} 14. e3 {[%clk 0:02:37]}  Be6 {[%clk 0:02:23]} 15. Qb5+ {[%clk 0:02:31]}  Bd7 {[%clk 0:02:21]} 16. Qf1 {[%clk 0:02:31]}  Bb4 {[%clk 0:02:12]} 17. Ndxe4 {[%clk 0:02:23]}  Nxe4 {[%clk 0:02:10]} 18. Bxe4 {[%clk 0:02:24]}  O-O {[%clk 0:02:07]} 19. Bxb7 {[%clk 0:02:22]}  Rb8 {[%clk 0:01:43]} 20. Bg2 {[%clk 0:02:20]}  Be6 {[%clk 0:01:39]} 21. Qf2 {[%clk 0:02:15]}  Nc4 {[%clk 0:01:29]} 22. e4 {[%clk 0:02:11]}  Ba5 {[%clk 0:01:26]} 23. Kh1 {[%clk 0:02:00]}  Bb6 {[%clk 0:01:19]} 24. Rd1 {[%clk 0:02:00]}  Bg4 {[%clk 0:01:15]} 25. Bf3 {[%clk 0:01:51]}  Bxf3+ {[%clk 0:01:09]} 26. Qxf3 {[%clk 0:01:52]}  Ba5 {[%clk 0:00:52]} 27. Qe2 {[%clk 0:01:46]}  Bxc3 {[%clk 0:00:47]} 28. bxc3 {[%clk 0:01:44]}  Qc8 {[%clk 0:00:45]} 29. Bf4 {[%clk 0:01:31]}  Rb2 {[%clk 0:00:43]} 30. Qf3 {[%clk 0:01:31]}  Re8 {[%clk 0:00:42]} 31. Rdb1 {[%clk 0:01:17]}  Qb7 {[%clk 0:00:40]} 32. Rxb2 {[%clk 0:01:12]}  Qxb2 {[%clk 0:00:38]} 33. Rd1 {[%clk 0:01:09]}  Qxa2 {[%clk 0:00:37]} 34. d5 {[%clk 0:01:08]}  Qc2 {[%clk 0:00:35]} 35. d6 {[%clk 0:01:04]}  Nxd6 {[%clk 0:00:24]} 36. Rxd6 {[%clk 0:00:56]}  Rxe4 {[%clk 0:00:23]} 37. Rd8+ {[%clk 0:00:55]}  Kh7 {[%clk 0:00:23]} 38. Qd3 {[%clk 0:00:53]}  Qxd3 {[%clk 0:00:07]} 39. Rxd3 {[%clk 0:00:54]}  g5 {[%clk 0:00:06]} 40. Be3 {[%clk 0:00:40]}  a5 {[%clk 0:00:04]} 41. Kg2 {[%clk 0:00:39]}  a4 {[%clk 0:00:04]} 42. Kf3 {[%clk 0:00:40]}  Rc4 {[%clk 0:00:03]} 43. Bd4 {[%clk 0:00:38]}  a3 {[%clk 0:00:03]} 44. Rd2 {[%clk 0:00:39]}  Ra4 {[%clk 0:00:02]} 45. Ra2 {[%clk 0:00:39]}  f5 {[%clk 0:00:01]} 46. Ke3 {[%clk 0:00:40]} 1-0


[Site "https://www.chess.com"]

[Event "Titled Tuesday Blitz April 25 Late 2023"]
[White "Nasuta, Grzegorz"]
[Black "Guzman Moneo, Alberto"]
[WhiteFideId "1141686"]
[BlackFideId "2209616"]
[WhiteElo "2449"]
[BlackElo "2157"]
[Result "1-0"]
[Round "01"]
[TimeControl "180+2"]
[Date "2023.04.25"]
[WhiteClock "0:00:00"]
[BlackClock "0:00:00"]

1. e4 {[%clk 0:00:01]}  g6 {[%clk 0:00:01]} 2. d4 {[%clk 0:00:01]}  Bg7 {[%clk 0:00:01]} 3. Nf3 {[%clk 0:00:01]}  d6 {[%clk 0:00:01]} 4. Be3 {[%clk 0:00:01]}  c5 {[%clk 0:00:01]} 5. c3 {[%clk 0:00:01]}  Nf6 {[%clk 0:00:01]} 6. Nbd2 {[%clk 0:00:01]}  cxd4 {[%clk 0:00:01]} 7. cxd4 {[%clk 0:00:01]}  Nc6 {[%clk 0:00:01]} 8. h3 {[%clk 0:00:01]}  O-O {[%clk 0:00:01]} 9. Be2 {[%clk 0:00:01]}  Bd7 {[%clk 0:00:01]} 10. O-O {[%clk 0:00:01]}  Rc8 {[%clk 0:00:01]} 11. Rc1 {[%clk 0:00:01]}  a6 {[%clk 0:00:01]} 12. a3 {[%clk 0:00:01]}  b5 {[%clk 0:00:01]} 13. d5 {[%clk 0:00:01]}  Na5 {[%clk 0:00:01]} 14. Nd4 {[%clk 0:00:01]}  Nc4 {[%clk 0:00:01]} 15. Nxc4 {[%clk 0:00:01]}  bxc4 {[%clk 0:00:01]} 16. f3 {[%clk 0:00:01]}  Nh5 {[%clk 0:00:01]} 17. Bxc4 {[%clk 0:00:01]}  Ng3 {[%clk 0:00:01]} 18. Re1 {[%clk 0:00:01]}  a5 {[%clk 0:00:01]} 19. Bf2 {[%clk 0:00:01]}  Nh5 {[%clk 0:00:01]} 20. Qd2 {[%clk 0:00:01]}  Kh8 {[%clk 0:00:01]} 21. Bf1 {[%clk 0:00:01]}  Rxc1 {[%clk 0:00:01]} 22. Rxc1 {[%clk 0:00:01]}  Qb8 {[%clk 0:00:01]} 23. b4 {[%clk 0:00:01]}  axb4 {[%clk 0:00:01]} 24. axb4 {[%clk 0:00:01]}  Rc8 {[%clk 0:00:00]} 25. Nc6 {[%clk 0:00:01]}  Bxc6 {[%clk 0:00:00]} 26. dxc6 {[%clk 0:00:01]}  Be5 {[%clk 0:00:00]} 27. b5 {[%clk 0:00:01]}  Bf4 {[%clk 0:00:00]} 28. Qb2+ {[%clk 0:00:01]}  e5 {[%clk 0:00:00]} 29. Rc2 {[%clk 0:00:01]}  Qa8 {[%clk 0:00:00]} 30. b6 {[%clk 0:00:00]}  Rxc6 {[%clk 0:00:00]} 31. b7 {[%clk 0:00:00]}  Rxc2 {[%clk 0:00:00]} 32. bxa8=Q+ {[%clk 0:00:00]}  Rc8 {[%clk 0:00:00]} 33. Qxc8+ {[%clk 0:00:00]}  Kg7 {[%clk 0:00:00]} 34. Qbb8 {[%clk 0:00:00]}  Kh6 {[%clk 0:00:00]} 35. Qf8+ {[%clk 0:00:00]}  Kg5 {[%clk 0:00:00]} 36. Qbxd6 {[%clk 0:00:00]}  f6 {[%clk 0:00:00]} 37. h4# {[%clk 0:00:00]} 1-0


[Site "https://www.chess.com"]

[Event "Titled Tuesday Blitz April 25 Late 2023"]
[White "Degtiarev, Evgeny"]
[Black "Amburgy, Ryan"]
[WhiteFideId "4149610"]
[BlackFideId "30924820"]
[WhiteElo "2284"]
[BlackElo "2134"]
[Result "1/2-1/2"]
[Round "01"]
[TimeControl "180+2"]
[Date "2023.04.25"]
[WhiteClock "0:00:01"]
[BlackClock "0:00:00"]

1. d4 {[%clk 0:00:01]}  Nf6 {[%clk 0:00:01]} 2. c4 {[%clk 0:00:01]}  e6 {[%clk 0:00:01]} 3. g3 {[%clk 0:00:01]}  d5 {[%clk 0:00:01]} 4. Nf3 {[%clk 0:00:01]}  Bb4+ {[%clk 0:00:01]} 5. Bd2 {[%clk 0:00:01]}  Bd6 {[%clk 0:00:01]} 6. cxd5 {[%clk 0:00:01]}  exd5 {[%clk 0:00:01]} 7. Bg2 {[%clk 0:00:01]}  O-O {[%clk 0:00:01]} 8. O-O {[%clk 0:00:01]}  Bf5 {[%clk 0:00:01]} 9. Qb3 {[%clk 0:00:01]}  Nbd7 {[%clk 0:00:01]} 10. Qxb7 {[%clk 0:00:01]}  Nb6 {[%clk 0:00:01]} 11. Nc3 {[%clk 0:00:01]}  Bc8 {[%clk 0:00:01]} 12. Qc6 {[%clk 0:00:01]}  Bd7 {[%clk 0:00:01]} 13. Qb7 {[%clk 0:00:01]}  Bc8 {[%clk 0:00:00]} 14. Qc6 {[%clk 0:00:01]}  Bd7 {[%clk 0:00:00]} 15. Qb7 {[%clk 0:00:01]}  Bc8 {[%clk 0:00:00]} 1/2-1/2


[Site "https://www.chess.com"]

[Event "Titled Tuesday Blitz April 25 Late 2023"]
[White "Bruedigam, Martin"]
[Black "Rosenberg, Evan S"]
[WhiteFideId "24608033"]
[BlackFideId "2019299"]
[WhiteElo "2331"]
[BlackElo "1956"]
[Result "1-0"]
[Round "01"]
[TimeControl "180+2"]
[Date "2023.04.25"]
[WhiteClock "0:00:12"]
[BlackClock "0:00:09"]

1. d4 {[%clk 0:03:00]}  d5 {[%clk 0:02:43]} 2. c4 {[%clk 0:03:00]}  e6 {[%clk 0:02:43]} 3. Nc3 {[%clk 0:03:00]}  c5 {[%clk 0:02:44]} 4. cxd5 {[%clk 0:02:57]}  cxd4 {[%clk 0:02:44]} 5. Qxd4 {[%clk 0:02:54]}  Nc6 {[%clk 0:02:44]} 6. Qa4 {[%clk 0:02:51]}  exd5 {[%clk 0:02:44]} 7. Nf3 {[%clk 0:02:49]}  d4 {[%clk 0:02:44]} 8. Ne4 {[%clk 0:02:47]}  Bf5 {[%clk 0:02:43]} 9. Ng3 {[%clk 0:02:47]}  Bb4+ {[%clk 0:02:39]} 10. Bd2 {[%clk 0:02:47]}  Bxd2+ {[%clk 0:02:40]} 11. Nxd2 {[%clk 0:02:47]}  Be6 {[%clk 0:02:40]} 12. Nge4 {[%clk 0:02:44]}  Ne7 {[%clk 0:02:36]} 13. g3 {[%clk 0:02:38]}  O-O {[%clk 0:02:34]} 14. Bg2 {[%clk 0:02:38]}  d3 {[%clk 0:02:26]} 15. e3 {[%clk 0:02:18]}  b5 {[%clk 0:02:13]} 16. Qd1 {[%clk 0:02:05]}  Nb4 {[%clk 0:02:13]} 17. O-O {[%clk 0:02:03]}  Nc2 {[%clk 0:02:13]} 18. Rc1 {[%clk 0:02:00]}  Bxa2 {[%clk 0:02:13]} 19. b3 {[%clk 0:01:50]}  Nd5 {[%clk 0:02:01]} 20. Rxc2 {[%clk 0:01:30]}  dxc2 {[%clk 0:02:00]} 21. Qxc2 {[%clk 0:01:30]}  Nb4 {[%clk 0:02:01]} 22. Qb2 {[%clk 0:01:27]}  Rc8 {[%clk 0:01:57]} 23. Nc3 {[%clk 0:01:11]}  Qd3 {[%clk 0:01:50]} 24. Nxa2 {[%clk 0:01:10]}  Nxa2 {[%clk 0:01:49]} 25. Qxa2 {[%clk 0:01:08]}  Rc2 {[%clk 0:01:50]} 26. Qxa7 {[%clk 0:00:59]}  Rxd2 {[%clk 0:01:48]} 27. Bf3 {[%clk 0:00:44]}  Qxb3 {[%clk 0:01:45]} 28. h4 {[%clk 0:00:40]}  g6 {[%clk 0:01:39]} 29. h5 {[%clk 0:00:40]}  Rfd8 {[%clk 0:01:12]} 30. Qc5 {[%clk 0:00:22]}  Qc4 {[%clk 0:01:05]} 31. Qe5 {[%clk 0:00:21]}  b4 {[%clk 0:00:52]} 32. h6 {[%clk 0:00:20]}  Qc3 {[%clk 0:00:52]} 33. Qe7 {[%clk 0:00:18]}  R2d7 {[%clk 0:00:50]} 34. Qe4 {[%clk 0:00:16]}  b3 {[%clk 0:00:45]} 35. Kg2 {[%clk 0:00:16]}  Qf6 {[%clk 0:00:44]} 36. Bg4 {[%clk 0:00:16]}  Re7 {[%clk 0:00:44]} 37. Qb4 {[%clk 0:00:15]}  b2 {[%clk 0:00:41]} 38. Rb1 {[%clk 0:00:14]}  Qc6+ {[%clk 0:00:26]} 39. Bf3 {[%clk 0:00:13]}  Qd6 {[%clk 0:00:17]} 40. Qxb2 {[%clk 0:00:13]}  f6 {[%clk 0:00:17]} 41. Ra1 {[%clk 0:00:13]}  Qe5 {[%clk 0:00:15]} 42. Qb3+ {[%clk 0:00:12]}  Kf8 {[%clk 0:00:13]} 43. Ra2 {[%clk 0:00:11]}  Qg5 {[%clk 0:00:12]} 44. Ra6 {[%clk 0:00:11]}  Qxh6 {[%clk 0:00:12]} 45. Rxf6+ {[%clk 0:00:11]}  Ke8 {[%clk 0:00:12]} 46. Rf4 {[%clk 0:00:11]}  Qg5 {[%clk 0:00:10]} 47. Bc6+ {[%clk 0:00:11]}  Rdd7 {[%clk 0:00:09]} 48. Qg8# {[%clk 0:00:12]} 1-0


[Site "https://www.chess.com"]